[Event "*** Titled Tuesday 3|2 Blitz"]
[Site "Chess.com"]
[Date "2016.05.03"]
[Round "7"]
[White "oskariot"]
[Black "SabinaFoisor"]
[Result "1-0"]
[WhiteElo "2435"]
[BlackElo "2210"]
[TimeControl "180+2"]
[EndTime "18:29:09 PDT"]
[Termination "oskariot won on time"]

1. e4 {[%clk 0:03:00.1]} 1... e5 {[%clk 0:03:00.4]} 2. Nf3 {[%clk 0:03:00.9]}
2... Nc6 {[%clk 0:03:01.2]} 3. Bb5 {[%clk 0:03:02.5]} 3... a6 {[%clk 0:03:01.5]}
4. Ba4 {[%clk 0:03:03.7]} 4... Nf6 {[%clk 0:03:02.4]} 5. O-O {[%clk 0:03:05.2]}
5... Be7 {[%clk 0:03:03.1]} 6. Re1 {[%clk 0:03:05.4]} 6... b5 {[%clk 0:03:03.7]}
7. Bb3 {[%clk 0:03:06.7]} 7... d6 {[%clk 0:03:04.9]} 8. c3 {[%clk 0:03:08.1]}
8... O-O {[%clk 0:03:05.3]} 9. d4 {[%clk 0:03:09.7]} 9... Bg4 {[%clk 0:03:04.4]}
10. d5 {[%clk 0:03:10.9]} 10... Na5 {[%clk 0:03:04.5]} 11. Bc2 {[%clk
0:03:10.4]} 11... Qc8 {[%clk 0:03:03.4]} 12. h3 {[%clk 0:03:02.7]} 12... Bd7
{[%clk 0:03:01.4]} 13. Nbd2 {[%clk 0:03:03.6]} 13... c6 {[%clk 0:03:02.1]} 14.
dxc6 {[%clk 0:03:03]} 14... Qxc6 {[%clk 0:03:00.2]} 15. Nf1 {[%clk 0:03:03.7]}
15... Nc4 {[%clk 0:02:54.5]} 16. Ng3 {[%clk 0:02:48.1]} 16... Rac8 {[%clk
0:02:51.2]} 17. b3 {[%clk 0:02:22.4]} 17... Nb6 {[%clk 0:02:49.4]} 18. Bd2
{[%clk 0:02:19.3]} 18... Rfe8 {[%clk 0:02:48.6]} 19. Rc1 {[%clk 0:02:19.3]}
19... h6 {[%clk 0:02:46.5]} 20. Bd3 {[%clk 0:01:48.6]} 20... Bf8 {[%clk
0:02:46.4]} 21. Nh4 {[%clk 0:01:25.8]} 21... d5 {[%clk 0:02:36.5]} 22. Qf3
{[%clk 0:01:20.4]} 22... Rcd8 {[%clk 0:01:54.5]} 23. Nhf5 {[%clk 0:00:55.6]}
23... Bxf5 {[%clk 0:01:53.9]} 24. Qxf5 {[%clk 0:00:24.7]} 24... g6 {[%clk
0:01:42]} 25. Qf3 {[%clk 0:00:24.4]} 25... Bg7 {[%clk 0:01:36.2]} 26. Rcd1
{[%clk 0:00:22.9]} 26... d4 {[%clk 0:01:28.6]} 27. cxd4 {[%clk 0:00:20.5]} 27...
Rxd4 {[%clk 0:01:29.5]} 28. Be3 {[%clk 0:00:20.8]} 28... Rd6 {[%clk 0:01:28.6]}
29. Rc1 {[%clk 0:00:21.1]} 29... Qb7 {[%clk 0:01:26]} 30. Bc5 {[%clk 0:00:22.4]}
30... Rc6 {[%clk 0:01:19.8]} 31. h4 {[%clk 0:00:19]} 31... Nbd7 {[%clk
0:01:19.4]} 32. Be3 {[%clk 0:00:19.8]} 32... Rxc1 {[%clk 0:01:13.6]} 33. Rxc1
{[%clk 0:00:21]} 33... h5 {[%clk 0:01:10.4]} 34. Qd1 {[%clk 0:00:18.2]} 34...
Bf8 {[%clk 0:01:03.6]} 35. Qc2 {[%clk 0:00:14.7]} 35... Ba3 {[%clk 0:01:03.3]}
36. Qc6 {[%clk 0:00:15.9]} 36... Qb8 {[%clk 0:00:57.8]} 37. Rc2 {[%clk
0:00:17.2]} 37... Re6 {[%clk 0:00:42.4]} 38. Qc8+ {[%clk 0:00:18.2]} 38... Kg7
{[%clk 0:00:36.3]} 39. Qxb8 {[%clk 0:00:11]} 39... Nxb8 {[%clk 0:00:37.1]} 40.
Bc5 {[%clk 0:00:10.9]} 40... Bxc5 {[%clk 0:00:36]} 41. Rxc5 {[%clk 0:00:12.2]}
41... Nc6 {[%clk 0:00:35.1]} 42. Ne2 {[%clk 0:00:13.5]} 42... Rd6 {[%clk
0:00:34.5]} 43. f3 {[%clk 0:00:11.2]} 43... Nd7 {[%clk 0:00:34.4]} 44. Rd5
{[%clk 0:00:10.1]} 44... Rxd5 {[%clk 0:00:34.5]} 45. exd5 {[%clk 0:00:11.5]}
45... Nb4 {[%clk 0:00:35.5]} 46. Bb1 {[%clk 0:00:12.4]} 46... Nxd5 {[%clk
0:00:35.6]} 47. Kf2 {[%clk 0:00:14]} 47... f5 {[%clk 0:00:36.4]} 48. Ke1 {[%clk
0:00:14.7]} 48... Kf6 {[%clk 0:00:36.9]} 49. Kd2 {[%clk 0:00:16]} 49... b4
{[%clk 0:00:37]} 50. Bd3 {[%clk 0:00:16.6]} 50... a5 {[%clk 0:00:37.1]} 51. Bc4
{[%clk 0:00:18]} 51... Nf4 {[%clk 0:00:37]} 52. Nxf4 {[%clk 0:00:18.6]} 52...
exf4 {[%clk 0:00:38.9]} 53. Kd3 {[%clk 0:00:19.5]} 53... Ke5 {[%clk 0:00:31]}
54. Bf7 {[%clk 0:00:19.3]} 54... Nf8 {[%clk 0:00:30.5]} 55. Kc4 {[%clk
0:00:17.5]} 55... Kf6 {[%clk 0:00:22.7]} 56. Be8 {[%clk 0:00:11.4]} 56... Ne6
{[%clk 0:00:18.6]} 57. Bd7 {[%clk 0:00:09.1]} 57... Nf8 {[%clk 0:00:15.8]} 58.
Bc8 {[%clk 0:00:08.1]} 58... Ke5 {[%clk 0:00:14.6]} 59. Kb5 {[%clk 0:00:07.4]}
59... Kd4 {[%clk 0:00:15]} 60. Kxa5 {[%clk 0:00:08]} 60... Kc5 {[%clk
0:00:14.5]} 61. Ka4 {[%clk 0:00:08.2]} 61... Nh7 {[%clk 0:00:12.4]} 62. a3
{[%clk 0:00:09.2]} 62... bxa3 {[%clk 0:00:12.6]} 63. Kxa3 {[%clk 0:00:11.1]}
63... Nf6 {[%clk 0:00:10.2]} 64. Be6 {[%clk 0:00:11.7]} 64... Kd6 {[%clk
0:00:08.8]} 65. Bf7 {[%clk 0:00:11.2]} 1-0

[Event "*** Titled Tuesday 3|2 Blitz"]
[Site "Chess.com"]
[Date "2016.05.03"]
[Round "8"]
[White "exoticprincess"]
[Black "Checky2015"]
[Result "1-0"]
[WhiteElo "2839"]
[BlackElo "2613"]
[TimeControl "180+2"]
[EndTime "18:36:05 PDT"]
[Termination "exoticprincess won by resignation"]

1. b3 {[%clk 0:03:01.9]} 1... d5 {[%clk 0:03:00.1]} 2. Bb2 {[%clk 0:03:03]} 2...
Bf5 {[%clk 0:03:01.7]} 3. e3 {[%clk 0:03:04.1]} 3... e6 {[%clk 0:03:03]} 4. f4
{[%clk 0:03:05.2]} 4... Nf6 {[%clk 0:03:04.2]} 5. Nf3 {[%clk 0:03:06.1]} 5...
Be7 {[%clk 0:03:05.4]} 6. Nc3 {[%clk 0:03:05.1]} 6... O-O {[%clk 0:03:06.3]} 7.
h3 {[%clk 0:03:05.7]} 7... Ne4 {[%clk 0:03:06]} 8. Nxe4 {[%clk 0:02:59.8]} 8...
Bxe4 {[%clk 0:02:59.5]} 9. d3 {[%clk 0:02:53.6]} 9... Bh4+ {[%clk 0:02:49.4]}
10. Nxh4 {[%clk 0:02:48.3]} 10... Qxh4+ {[%clk 0:02:51.3]} 11. Kd2 {[%clk
0:02:47.5]} 11... Bg6 {[%clk 0:02:52.1]} 12. Qg4 {[%clk 0:02:46.7]} 12... Qxg4
{[%clk 0:02:43.6]} 13. hxg4 {[%clk 0:02:47.5]} 13... Nd7 {[%clk 0:02:42.8]} 14.
g5 {[%clk 0:02:43.2]} 14... Rae8 {[%clk 0:02:40.3]} 15. g4 {[%clk 0:02:42.2]}
15... f6 {[%clk 0:02:41.2]} 16. gxf6 {[%clk 0:02:41.8]} 16... Nxf6 {[%clk
0:02:42.8]} 17. Be2 {[%clk 0:02:41.8]} 17... Nd7 {[%clk 0:02:43.5]} 18. Rag1
{[%clk 0:02:38.5]} 18... c6 {[%clk 0:02:41.3]} 19. Rh2 {[%clk 0:02:33.3]} 19...
Rf7 {[%clk 0:02:41.4]} 20. b4 {[%clk 0:02:31.7]} 20... a6 {[%clk 0:02:37.9]} 21.
a4 {[%clk 0:02:32.2]} 21... c5 {[%clk 0:02:37.4]} 22. bxc5 {[%clk 0:02:31.4]}
22... Nxc5 {[%clk 0:02:39.3]} 23. a5 {[%clk 0:02:31]} 23... Rc8 {[%clk
0:02:38.6]} 24. Bd4 {[%clk 0:02:31.2]} 24... Rfc7 {[%clk 0:02:38.4]} 25. Bd1
{[%clk 0:02:25.8]} 25... Na4 {[%clk 0:02:24.4]} 26. c4 {[%clk 0:02:18.7]} 26...
Nc5 {[%clk 0:02:24.9]} 27. cxd5 {[%clk 0:02:15.3]} 27... Bxd3 {[%clk 0:02:07.6]}
28. d6 {[%clk 0:02:08.9]} 1-0

[Event "*** Titled Tuesday 3|2 Blitz"]
[Site "Chess.com"]
[Date "2016.05.03"]
[Round "8"]
[White "AlexanderL"]
[Black "StellarChessPro"]
[Result "1-0"]
[WhiteElo "2579"]
[BlackElo "2294"]
[TimeControl "180+2"]
[EndTime "18:36:45 PDT"]
[Termination "AlexanderL won by resignation"]

1. d4 {[%clk 0:03:01.9]} 1... d5 {[%clk 0:02:58.4]} 2. Bf4 {[%clk 0:03:01.9]}
2... Nf6 {[%clk 0:02:56.4]} 3. e3 {[%clk 0:03:01.3]} 3... e6 {[%clk 0:02:56]} 4.
Nf3 {[%clk 0:02:59.5]} 4... Bd6 {[%clk 0:02:56.2]} 5. Bg3 {[%clk 0:03:00.1]}
5... Ne4 {[%clk 0:02:55.2]} 6. Nbd2 {[%clk 0:03:00.6]} 6... f5 {[%clk
0:02:54.3]} 7. Bh4 {[%clk 0:02:59.4]} 7... Be7 {[%clk 0:02:44.8]} 8. Bxe7 {[%clk
0:02:59.2]} 8... Qxe7 {[%clk 0:02:45.7]} 9. Bd3 {[%clk 0:02:58]} 9... Nd7 {[%clk
0:02:46.1]} 10. O-O {[%clk 0:02:58.9]} 10... O-O {[%clk 0:02:46.2]} 11. c4
{[%clk 0:02:59.9]} 11... c6 {[%clk 0:02:47.1]} 12. Rb1 {[%clk 0:02:59.8]} 12...
g5 {[%clk 0:02:45.7]} 13. Qe2 {[%clk 0:02:42.1]} 13... g4 {[%clk 0:02:45.5]} 14.
Ne1 {[%clk 0:02:43.2]} 14... Qh4 {[%clk 0:02:45.9]} 15. f3 {[%clk 0:02:35.8]}
15... Nxd2 {[%clk 0:02:46.3]} 16. Qxd2 {[%clk 0:02:36.5]} 16... g3 {[%clk
0:02:33.8]} 17. h3 {[%clk 0:02:33]} 17... Rf6 {[%clk 0:02:27.6]} 18. f4 {[%clk
0:02:32.7]} 18... Rh6 {[%clk 0:02:24.7]} 19. Nf3 {[%clk 0:02:33.8]} 19... Qh5
{[%clk 0:02:24.7]} 20. Rfc1 {[%clk 0:02:20.5]} 20... Qf7 {[%clk 0:02:11.1]} 21.
b4 {[%clk 0:02:12.9]} 21... b6 {[%clk 0:02:09.2]} 22. cxd5 {[%clk 0:02:08]}
22... cxd5 {[%clk 0:02:11.1]} 23. Rc7 {[%clk 0:02:08]} 23... Qe8 {[%clk
0:02:10.9]} 24. Rbc1 {[%clk 0:02:08.5]} 24... Nf6 {[%clk 0:02:06]} 25. Qe1
{[%clk 0:02:08.3]} 25... Rg6 {[%clk 0:02:04]} 26. Ne5 {[%clk 0:02:08.8]} 26...
Rg7 {[%clk 0:02:05.3]} 27. Rxg7+ {[%clk 0:02:09.5]} 27... Kxg7 {[%clk
0:02:07.2]} 28. Qxg3+ {[%clk 0:02:10.7]} 28... Kh8 {[%clk 0:02:08.7]} 29. Rc7
{[%clk 0:02:06.3]} 29... Bd7 {[%clk 0:01:44.1]} 30. Qh4 {[%clk 0:02:06.3]} 30...
Kg7 {[%clk 0:01:30.1]} 31. Qg5+ {[%clk 0:02:05.5]} 1-0

[Event "*** Titled Tuesday 3|2 Blitz"]
[Site "Chess.com"]
[Date "2016.05.03"]
[Round "8"]
[White "Noukii"]
[Black "Newlight1"]
[Result "0-1"]
[WhiteElo "2678"]
[BlackElo "2267"]
[TimeControl "180+2"]
[EndTime "18:37:00 PDT"]
[Termination "Newlight1 won by resignation"]

1. d4 {[%clk 0:03:01.9]} 1... Nf6 {[%clk 0:03:00.3]} 2. c4 {[%clk 0:03:01.7]}
2... c5 {[%clk 0:03:01.6]} 3. d5 {[%clk 0:02:59.8]} 3... e6 {[%clk 0:03:02.9]}
4. Nc3 {[%clk 0:03:00]} 4... exd5 {[%clk 0:03:04.4]} 5. cxd5 {[%clk 0:03:01.9]}
5... d6 {[%clk 0:03:05.8]} 6. e4 {[%clk 0:03:03]} 6... g6 {[%clk 0:03:07.4]} 7.
Nf3 {[%clk 0:03:04.1]} 7... Bg7 {[%clk 0:03:09]} 8. Bg5 {[%clk 0:03:05.7]} 8...
h6 {[%clk 0:03:07.9]} 9. Bh4 {[%clk 0:03:06.5]} 9... g5 {[%clk 0:03:07.9]} 10.
Bg3 {[%clk 0:03:07.7]} 10... Nh5 {[%clk 0:03:03.6]} 11. Bb5+ {[%clk 0:03:08.4]}
11... Bd7 {[%clk 0:02:48.6]} 12. Bxd6 {[%clk 0:03:07.6]} 12... Bxc3+ {[%clk
0:02:18.3]} 13. bxc3 {[%clk 0:03:09.5]} 13... Bxb5 {[%clk 0:02:17.4]} 14. e5
{[%clk 0:03:11.1]} 14... Nf4 {[%clk 0:02:14]} 15. Rb1 {[%clk 0:03:08.8]} 15...
Qa5 {[%clk 0:02:06.5]} 16. Qb3 {[%clk 0:03:01.3]} 16... a6 {[%clk 0:01:59.2]}
17. Kd2 {[%clk 0:02:53.9]} 17... c4 {[%clk 0:01:50]} 18. Qb2 {[%clk 0:02:45.5]}
18... Nxd5 {[%clk 0:01:47.5]} 19. Nd4 {[%clk 0:02:25.7]} 19... Nc6 {[%clk
0:01:41.2]} 20. Nxc6 {[%clk 0:02:18.3]} 20... Bxc6 {[%clk 0:01:34.9]} 21. Rhc1
{[%clk 0:02:13.3]} 21... Rd8 {[%clk 0:01:27.1]} 22. Ke1 {[%clk 0:02:09.4]} 22...
f6 {[%clk 0:01:23.1]} 23. Qc2 {[%clk 0:02:08.3]} 23... Nf4 {[%clk 0:01:19]} 24.
Qf5 {[%clk 0:01:58.6]} 24... Rxd6 {[%clk 0:00:52.3]} 0-1

[Event "*** Titled Tuesday 3|2 Blitz"]
[Site "Chess.com"]
[Date "2016.05.03"]
[Round "8"]
[White "Kawhi_Leonard2"]
[Black "SidArun"]
[Result "0-1"]
[WhiteElo "2109"]
[BlackElo "2014"]
[TimeControl "180+2"]
[EndTime "18:38:09 PDT"]
[Termination "SidArun won by resignation"]

1. e4 {[%clk 0:02:59.3]} 1... c6 {[%clk 0:03:00.8]} 2. d4 {[%clk 0:02:59.1]}
2... d5 {[%clk 0:03:02.7]} 3. exd5 {[%clk 0:03:00]} 3... cxd5 {[%clk 0:03:03.8]}
4. Bd3 {[%clk 0:03:01.5]} 4... Nc6 {[%clk 0:03:04.3]} 5. c3 {[%clk 0:03:02.1]}
5... Qc7 {[%clk 0:03:06.1]} 6. Nd2 {[%clk 0:02:55.1]} 6... Nf6 {[%clk
0:02:56.6]} 7. h3 {[%clk 0:02:50.8]} 7... e5 {[%clk 0:02:55.6]} 8. dxe5 {[%clk
0:02:49.2]} 8... Nxe5 {[%clk 0:02:54.7]} 9. Be2 {[%clk 0:02:49.6]} 9... Bd6
{[%clk 0:02:53.8]} 10. Ngf3 {[%clk 0:02:50.5]} 10... O-O {[%clk 0:02:54.1]} 11.
O-O {[%clk 0:02:51.4]} 11... Ng6 {[%clk 0:02:53]} 12. Nb3 {[%clk 0:02:48.7]}
12... Re8 {[%clk 0:02:28.8]} 13. Bg5 {[%clk 0:02:48]} 13... Ne4 {[%clk
0:02:21.5]} 14. Qxd5 {[%clk 0:02:40.6]} 14... Nxg5 {[%clk 0:02:16.6]} 15. Nxg5
{[%clk 0:02:40.1]} 15... Rxe2 {[%clk 0:02:17.5]} 16. Rad1 {[%clk 0:02:30.6]}
16... h6 {[%clk 0:01:59.3]} 17. Nxf7 {[%clk 0:02:02.5]} 17... Qxf7 {[%clk
0:01:59.7]} 18. Qxd6 {[%clk 0:02:03.5]} 18... Bf5 {[%clk 0:01:33.9]} 19. Rd2
{[%clk 0:01:53.8]} 19... Rxd2 {[%clk 0:01:33.6]} 20. Nxd2 {[%clk 0:01:54.4]}
20... Re8 {[%clk 0:01:35.2]} 21. Nf3 {[%clk 0:01:48.8]} 21... Bxh3 {[%clk
0:01:35.2]} 22. gxh3 {[%clk 0:01:27.3]} 22... Qxf3 {[%clk 0:01:35.3]} 23. Qxg6
{[%clk 0:01:27.8]} 23... Re5 {[%clk 0:01:25.1]} 24. Kh2 {[%clk 0:01:06]} 24...
Rg5 {[%clk 0:01:19.1]} 0-1

[Event "*** Titled Tuesday 3|2 Blitz"]
[Site "Chess.com"]
[Date "2016.05.03"]
[Round "8"]
[White "Tonychess32"]
[Black "GeorgMeier"]
[Result "1-0"]
[WhiteElo "2455"]
[BlackElo "2730"]
[TimeControl "180+2"]
[EndTime "18:38:37 PDT"]
[Termination "Tonychess32 won by checkmate"]

1. e4 {[%clk 0:03:01.9]} 1... e6 {[%clk 0:03:01.2]} 2. d4 {[%clk 0:03:02.5]}
2... d5 {[%clk 0:03:02.4]} 3. Nd2 {[%clk 0:03:03.5]} 3... dxe4 {[%clk
0:03:03.4]} 4. Nxe4 {[%clk 0:03:04.3]} 4... Nd7 {[%clk 0:03:04.9]} 5. Ng3 {[%clk
0:03:04.9]} 5... Ngf6 {[%clk 0:03:06.2]} 6. Nf3 {[%clk 0:03:05.5]} 6... c5
{[%clk 0:03:07.3]} 7. Bd3 {[%clk 0:03:04.3]} 7... cxd4 {[%clk 0:03:02.5]} 8.
Nxd4 {[%clk 0:03:05.5]} 8... Bc5 {[%clk 0:03:03.2]} 9. c3 {[%clk 0:03:01.2]}
9... Bxd4 {[%clk 0:03:02.9]} 10. cxd4 {[%clk 0:03:03.1]} 10... b6 {[%clk
0:03:04]} 11. O-O {[%clk 0:03:03.4]} 11... Bb7 {[%clk 0:03:05]} 12. Re1 {[%clk
0:03:04]} 12... O-O {[%clk 0:03:06.1]} 13. Be3 {[%clk 0:03:03.1]} 13... Rc8
{[%clk 0:03:06.5]} 14. Rc1 {[%clk 0:03:01.7]} 14... Rxc1 {[%clk 0:03:07.3]} 15.
Qxc1 {[%clk 0:03:03.6]} 15... Qa8 {[%clk 0:03:08.7]} 16. f3 {[%clk 0:03:00.9]}
16... Rc8 {[%clk 0:03:09.5]} 17. Qd2 {[%clk 0:03:02]} 17... Bd5 {[%clk 0:03:06]}
18. b3 {[%clk 0:03:01.7]} 18... a5 {[%clk 0:03:02.5]} 19. Bf4 {[%clk 0:03:02.9]}
19... a4 {[%clk 0:03:01]} 20. Rb1 {[%clk 0:02:55.1]} 20... axb3 {[%clk
0:03:01.6]} 21. axb3 {[%clk 0:02:57]} 21... Qa5 {[%clk 0:02:56.9]} 22. Qxa5
{[%clk 0:02:54.9]} 22... bxa5 {[%clk 0:02:58.1]} 23. Ne2 {[%clk 0:02:53.2]}
23... h6 {[%clk 0:02:55.5]} 24. Ra1 {[%clk 0:02:51.8]} 24... Bxb3 {[%clk
0:02:55.9]} 25. Rxa5 {[%clk 0:02:52.3]} 25... Bc4 {[%clk 0:02:49.4]} 26. Bxc4
{[%clk 0:02:53.6]} 26... Rxc4 {[%clk 0:02:50.2]} 27. Ra8+ {[%clk 0:02:53.5]}
27... Kh7 {[%clk 0:02:51.4]} 28. Ra7 {[%clk 0:02:53.9]} 28... g5 {[%clk
0:02:50.2]} 29. Be3 {[%clk 0:02:46.7]} 29... Kg6 {[%clk 0:02:48.1]} 30. Rb7
{[%clk 0:02:45]} 30... Rc2 {[%clk 0:02:44.3]} 31. Kf1 {[%clk 0:02:42.3]} 31...
Nd5 {[%clk 0:02:42.4]} 32. Bxg5 {[%clk 0:02:33.9]} 32... hxg5 {[%clk 0:02:30.5]}
33. Rxd7 {[%clk 0:02:34.3]} 33... Ne3+ {[%clk 0:02:31.4]} 34. Kf2 {[%clk
0:02:33.5]} 34... Nf5 {[%clk 0:02:33]} 35. g4 {[%clk 0:02:27.9]} 35... Nh4
{[%clk 0:02:29.4]} 36. d5 {[%clk 0:02:29.3]} 36... exd5 {[%clk 0:02:30.4]} 37.
Rxd5 {[%clk 0:02:29.7]} 37... f6 {[%clk 0:02:31.6]} 38. Ra5 {[%clk 0:02:24.3]}
38... Kf7 {[%clk 0:02:32.6]} 39. Ra4 {[%clk 0:02:20.9]} 39... Ng6 {[%clk
0:02:31.7]} 40. Ra7+ {[%clk 0:02:12.8]} 40... Ke6 {[%clk 0:02:31.4]} 41. Ra6+
{[%clk 0:02:13.4]} 41... Kf7 {[%clk 0:02:32.7]} 42. Ra7+ {[%clk 0:02:13.9]}
42... Kg8 {[%clk 0:02:34.1]} 43. Ke3 {[%clk 0:02:11.9]} 43... Ne5 {[%clk
0:02:25]} 44. Nd4 {[%clk 0:02:11.7]} 44... Rxh2 {[%clk 0:02:22.5]} 45. Ke4
{[%clk 0:02:12.7]} 45... Rd2 {[%clk 0:02:16.4]} 46. Ne6 {[%clk 0:02:08.6]} 46...
Rf2 {[%clk 0:01:57.9]} 47. f4 {[%clk 0:02:06.5]} 47... gxf4 {[%clk 0:01:53.4]}
48. Kf5 {[%clk 0:02:04.8]} 48... f3 {[%clk 0:01:28.7]} 49. Kxf6 {[%clk
0:01:57.3]} 49... Nxg4+ {[%clk 0:01:29.2]} 50. Kg6 {[%clk 0:01:58.5]} 50... Ne5+
{[%clk 0:01:30.4]} 51. Kf6 {[%clk 0:01:58.5]} 51... Re2 {[%clk 0:01:25]} 52.
Ra8+ {[%clk 0:01:55.9]} 52... Kh7 {[%clk 0:01:21.9]} 53. Ng5+ {[%clk 0:01:57.1]}
53... Kh6 {[%clk 0:01:21.3]} 54. Rh8# {[%clk 0:01:58]} 1-0

[Event "*** Titled Tuesday 3|2 Blitz"]
[Site "Chess.com"]
[Date "2016.05.03"]
[Round "8"]
[White "jposthuma"]
[Black "Silent_Terror"]
[Result "0-1"]
[WhiteElo "2141"]
[BlackElo "2554"]
[TimeControl "180+2"]
[EndTime "18:39:04 PDT"]
[Termination "Silent_Terror won by resignation"]

1. d4 {[%clk 0:03:01.9]} 1... e6 {[%clk 0:03:01.9]} 2. c4 {[%clk 0:03:02.8]}
2... Nf6 {[%clk 0:03:01.8]} 3. g3 {[%clk 0:03:03.6]} 3... Bb4+ {[%clk
0:03:01.8]} 4. Bd2 {[%clk 0:03:04.8]} 4... Qe7 {[%clk 0:03:01.1]} 5. Bg2 {[%clk
0:03:05.7]} 5... Nc6 {[%clk 0:03:02.6]} 6. Nf3 {[%clk 0:03:07.2]} 6... Bxd2+
{[%clk 0:03:02.8]} 7. Qxd2 {[%clk 0:03:07.7]} 7... Ne4 {[%clk 0:03:03.8]} 8. Qc2
{[%clk 0:03:06.3]} 8... Qb4+ {[%clk 0:03:04.8]} 9. Nbd2 {[%clk 0:03:05.7]} 9...
Nxd2 {[%clk 0:03:05]} 10. Qxd2 {[%clk 0:03:04.1]} 10... Qxc4 {[%clk 0:03:05.7]}
11. O-O {[%clk 0:03:05.1]} 11... Qb4 {[%clk 0:03:06.5]} 12. Qg5 {[%clk
0:02:58.5]} 12... O-O {[%clk 0:03:05.4]} 13. b3 {[%clk 0:02:32.1]} 13... Nxd4
{[%clk 0:03:01.3]} 14. Nxd4 {[%clk 0:02:34]} 14... Qxd4 {[%clk 0:03:02.4]} 15.
Rac1 {[%clk 0:02:34.1]} 15... c6 {[%clk 0:02:58]} 16. Rc4 {[%clk 0:02:35]} 16...
Qf6 {[%clk 0:02:58.1]} 17. Qd2 {[%clk 0:02:29.1]} 17... d5 {[%clk 0:02:57.7]}
18. Rh4 {[%clk 0:02:30.2]} 18... e5 {[%clk 0:02:56.7]} 19. e4 {[%clk 0:02:24.7]}
19... d4 {[%clk 0:02:54.3]} 20. f4 {[%clk 0:02:25]} 20... c5 {[%clk 0:02:44.8]}
21. fxe5 {[%clk 0:02:08.4]} 21... Qxe5 {[%clk 0:02:45.2]} 22. Bf3 {[%clk
0:01:45.6]} 22... g6 {[%clk 0:02:34.3]} 23. Qh6 {[%clk 0:01:39.3]} 23... Qg7
{[%clk 0:02:35.1]} 24. Qg5 {[%clk 0:01:39.1]} 24... b6 {[%clk 0:02:31.2]} 25. e5
{[%clk 0:01:34.4]} 25... Rb8 {[%clk 0:02:32.5]} 26. Bd5 {[%clk 0:01:29.8]} 26...
Be6 {[%clk 0:02:29.9]} 27. Bxe6 {[%clk 0:00:38.2]} 27... fxe6 {[%clk 0:02:31.8]}
28. Rhf4 {[%clk 0:00:39.7]} 28... Rf5 {[%clk 0:02:25.9]} 29. Rxf5 {[%clk
0:00:20.9]} 29... gxf5 {[%clk 0:02:27.8]} 30. Qf4 {[%clk 0:00:17.8]} 30... Rd8
{[%clk 0:02:23.4]} 31. Rd1 {[%clk 0:00:12.5]} 31... Qg4 {[%clk 0:02:21.6]} 32.
Qd2 {[%clk 0:00:04.6]} 32... Kg7 {[%clk 0:02:22.7]} 33. Kf2 {[%clk 0:00:02.8]}
33... h6 {[%clk 0:02:22.6]} 34. h3 {[%clk 0:00:04.2]} 34... Qxh3 {[%clk
0:02:21.8]} 35. Qf4 {[%clk 0:00:04.6]} 35... Qg4 {[%clk 0:02:21.3]} 36. Qd2
{[%clk 0:00:02.7]} 36... Rf8 {[%clk 0:02:15.2]} 37. Rh1 {[%clk 0:00:03.7]} 37...
f4 {[%clk 0:02:15.8]} 38. gxf4 {[%clk 0:00:03.2]} 38... Rxf4+ {[%clk 0:02:15.7]}
39. Ke1 {[%clk 0:00:04.1]} 39... Re4+ {[%clk 0:02:12.7]} 40. Kf2 {[%clk
0:00:03.8]} 40... Qf4+ {[%clk 0:02:12.5]} 41. Qxf4 {[%clk 0:00:04.3]} 41...
Rxf4+ {[%clk 0:02:14.4]} 42. Ke2 {[%clk 0:00:05.5]} 42... Re4+ {[%clk
0:02:15.6]} 43. Kd3 {[%clk 0:00:07.2]} 43... Rxe5 {[%clk 0:02:17.5]} 44. Rg1+
{[%clk 0:00:07.8]} 44... Rg5 {[%clk 0:02:18.7]} 45. Re1 {[%clk 0:00:09.5]} 45...
e5 {[%clk 0:02:20.3]} 46. Kc4 {[%clk 0:00:10.1]} 46... Kf6 {[%clk 0:02:20.5]}
47. Kb5 {[%clk 0:00:11.3]} 47... d3 {[%clk 0:02:20.8]} 48. Kc4 {[%clk
0:00:11.1]} 48... d2 {[%clk 0:02:21.2]} 49. Rd1 {[%clk 0:00:12.8]} 49... Rg2
{[%clk 0:02:22.5]} 50. Kc3 {[%clk 0:00:13.9]} 50... h5 {[%clk 0:02:23.6]} 51.
Kc2 {[%clk 0:00:14.1]} 51... e4 {[%clk 0:02:24.1]} 52. Rf1+ {[%clk 0:00:15.6]}
52... Ke5 {[%clk 0:02:25]} 53. Kd1 {[%clk 0:00:17.5]} 53... e3 {[%clk
0:02:25.3]} 0-1

[Event "*** Titled Tuesday 3|2 Blitz"]
[Site "Chess.com"]
[Date "2016.05.03"]
[Round "8"]
[White "chessking2151"]
[Black "sandropozo"]
[Result "0-1"]
[WhiteElo "2316"]
[BlackElo "2308"]
[TimeControl "180+2"]
[EndTime "18:39:29 PDT"]
[Termination "sandropozo won by resignation"]

1. e4 {[%clk 0:03:01.9]} 1... e6 {[%clk 0:03:00.4]} 2. d4 {[%clk 0:03:02.6]}
2... d5 {[%clk 0:03:01.9]} 3. Nd2 {[%clk 0:03:03.9]} 3... h6 {[%clk 0:03:00.2]}
4. Ngf3 {[%clk 0:03:01.3]} 4... Nf6 {[%clk 0:02:56.9]} 5. exd5 {[%clk
0:02:51.4]} 5... exd5 {[%clk 0:02:56.7]} 6. Bd3 {[%clk 0:02:51.7]} 6... c5
{[%clk 0:02:57.6]} 7. dxc5 {[%clk 0:02:51.9]} 7... Bxc5 {[%clk 0:02:57.7]} 8.
O-O {[%clk 0:02:53.5]} 8... O-O {[%clk 0:02:58.3]} 9. Nb3 {[%clk 0:02:55]} 9...
Bb6 {[%clk 0:02:59.3]} 10. Bf4 {[%clk 0:02:54.7]} 10... Nc6 {[%clk 0:02:55.7]}
11. h3 {[%clk 0:02:53.7]} 11... Re8 {[%clk 0:02:54.9]} 12. c3 {[%clk 0:02:53.2]}
12... Ne4 {[%clk 0:02:53]} 13. Qc2 {[%clk 0:02:40.7]} 13... Qf6 {[%clk
0:02:49.5]} 14. Be3 {[%clk 0:02:28.5]} 14... Bxh3 {[%clk 0:02:41.6]} 15. Bxb6
{[%clk 0:02:17.5]} 15... axb6 {[%clk 0:02:28.5]} 16. Nh2 {[%clk 0:01:46]} 16...
Bf5 {[%clk 0:02:07.2]} 17. f3 {[%clk 0:01:47]} 17... Ng3 {[%clk 0:02:03.4]} 18.
Rfe1 {[%clk 0:01:42.5]} 18... d4 {[%clk 0:01:54.5]} 19. Bxf5 {[%clk 0:01:36.8]}
19... Nxf5 {[%clk 0:01:53.2]} 20. Ng4 {[%clk 0:01:37.4]} 20... Qg5 {[%clk
0:01:53.8]} 21. cxd4 {[%clk 0:01:32.5]} 21... h5 {[%clk 0:01:49.1]} 22. Ne5
{[%clk 0:01:21.9]} 22... Ncxd4 {[%clk 0:01:37.7]} 23. Nxd4 {[%clk 0:01:14]}
23... Nxd4 {[%clk 0:01:38.7]} 24. Qe4 {[%clk 0:01:05.1]} 24... Rad8 {[%clk
0:01:18.4]} 25. f4 {[%clk 0:01:03.9]} 25... Qf5 {[%clk 0:00:58.7]} 26. Qxf5
{[%clk 0:00:50.4]} 26... Nxf5 {[%clk 0:00:59.4]} 27. Rad1 {[%clk 0:00:52.1]}
27... f6 {[%clk 0:00:58.9]} 28. Nf3 {[%clk 0:00:51.9]} 28... Rxd1 {[%clk
0:00:58.5]} 29. Rxd1 {[%clk 0:00:53.8]} 29... Re2 {[%clk 0:00:54.6]} 30. Rd8+
{[%clk 0:00:46.4]} 30... Kf7 {[%clk 0:00:53.8]} 31. Nd2 {[%clk 0:00:47.6]} 31...
Ne3 {[%clk 0:00:51]} 32. g3 {[%clk 0:00:44.1]} 32... Ke6 {[%clk 0:00:48.4]} 33.
Rd3 {[%clk 0:00:38.4]} 33... Kf5 {[%clk 0:00:47.2]} 34. Nf1 {[%clk 0:00:30.4]}
34... Nxf1 {[%clk 0:00:44.7]} 35. Kxf1 {[%clk 0:00:32.3]} 35... Rxb2 {[%clk
0:00:45.8]} 0-1